fUST/lending_fUST_20250602
["ID","MTS","AMOUNT","RATE_DAILY","PERIOD"]
[363738414,1748855443750,-430.0,0.00017268,2]
[363738416,1748855443759,-430.0,0.00017268,2]
[363738418,1748855443768,-430.0,0.00017268,2]
[363738420,1748855443778,-430.0,0.00017268,2]
[363738422,1748855443787,-430.0,0.00017268,2]
[363738424,1748855443797,-430.0,0.00017268,2]
[363738426,1748855443806,-430.0,0.00017268,2]
[363738428,1748855443815,-378.62557176,0.00017268,2]
[363738430,1748855443825,-430.0,0.00017268,2]
[363738432,1748855443834,-430.0,0.00017268,2]
[363738435,1748855443844,-430.0,0.00017268,2]
[363738437,1748855443853,-430.0,0.00017268,2]
[363738439,1748855443863,-430.0,0.00017268,2]
[363738441,1748855443873,-152.59195497,0.00017268,2]
[363738443,1748855443882,-430.0,0.00017268,2]
[363738445,1748855443891,-430.0,0.00017268,2]
[363738447,1748855443901,-430.0,0.00017268,2]
[363738449,1748855443910,-560.58978723,0.00017268,2]
[363738451,1748855443921,-400.0,0.00017268,2]
[363738453,1748855443931,-430.0,0.00017268,2]
[363738455,1748855443940,-430.0,0.00017268,2]
[363738457,1748855443950,-430.0,0.00017268,2]
[363738459,1748855443960,-430.0,0.00017268,2]
[363738461,1748855443969,-442.26922222,0.00017268,2]
[363738463,1748855443979,-430.0,0.00017268,2]
[363738465,1748855443989,-318.49411158,0.00017268,2]
[363738467,1748855443998,-430.0,0.00017268,2]
[363738469,1748855444008,-430.0,0.00017268,2]
[363738471,1748855444018,-430.0,0.00017268,2]
[363738473,1748855444027,-409.97627564,0.00017268,2]
[363738475,1748855444037,-430.0,0.00017268,2]
[363738477,1748855444046,-430.0,0.00017268,2]
[363738479,1748855444055,-430.0,0.00017268,2]
[363738481,1748855444065,-430.0,0.00017268,2]
[363738483,1748855444074,-786.19,0.00017268,2]
[363738485,1748855444084,-430.0,0.00017268,2]
[363738487,1748855444093,-430.0,0.00017268,2]
[363738489,1748855444104,-430.0,0.00017268,2]
[363738491,1748855444113,-430.0,0.00017268,2]
[363738493,1748855444122,-430.0,0.00017268,2]
[363738495,1748855444132,-430.0,0.00017268,2]
[363738497,1748855444142,-430.0,0.00017268,2]
[363738499,1748855444151,-430.0,0.00017268,2]
[363738501,1748855444161,-430.0,0.00017268,2]
[363738504,1748855444171,-430.0,0.00017268,2]
[363738506,1748855444181,-430.0,0.00017268,2]
[363738508,1748855444191,-430.0,0.00017268,2]
[363738510,1748855444200,-430.0,0.00017268,2]
[363738512,1748855444210,-430.0,0.00017268,2]
[363738514,1748855444219,-430.0,0.00017268,2]
[363738516,1748855444228,-430.0,0.00017268,2]
[363738517,1748855444237,-430.0,0.00017268,2]
[363738519,1748855444246,-430.0,0.00017268,2]
[363738521,1748855444256,-430.0,0.00017268,2]
[363738523,1748855444265,-333.06493381,0.00017268,2]
[363738525,1748855444275,-430.0,0.00017268,2]
[363738528,1748855444286,-430.0,0.00017268,2]
[363738530,1748855444295,-430.0,0.00017268,2]
[363738532,1748855444305,-430.0,0.00017268,2]
[363738534,1748855444314,-478.55517041,0.00017268,2]
[363738535,1748855444324,-276.93344488,0.00017268,2]
[363738537,1748855444333,-430.0,0.00017268,2]
[363738539,1748855444348,-430.0,0.00017268,2]
[363738540,1748855444358,-500.0,0.00017268,2]
[363738541,1748855444367,-430.0,0.00017268,2]
[363738543,1748855444376,-467.42,0.00017268,2]
[363738544,1748855444386,-1221.34,0.00017268,2]
[363738545,1748855444396,-276.03177238,0.00017268,2]
[363738546,1748855444405,-430.0,0.00017268,2]
[363738547,1748855444416,-430.0,0.00017268,2]
[363738548,1748855444426,-430.0,0.00017268,2]
[363738549,1748855444436,-430.0,0.00017268,2]
[363738550,1748855444445,-510.58,0.00017268,2]
[363738551,1748855444455,-430.0,0.00017268,2]
[363738552,1748855444465,-430.0,0.00017268,2]
[363738553,1748855444476,-430.0,0.00017268,2]
[363738554,1748855444486,-430.0,0.00017268,2]
[363738555,1748855444495,-430.0,0.00017268,2]
[363738556,1748855444505,-430.0,0.00017268,2]
[363738557,1748855444514,-642.42,0.00017268,2]
[363738558,1748855444524,-430.0,0.00017268,2]
[363738559,1748855444534,-867.22,0.00017268,2]
[363738560,1748855444543,-430.0,0.00017268,2]
[363738561,1748855444553,-430.0,0.00017268,2]
[363738563,1748855444563,-430.0,0.00017268,2]
[363738565,1748855444574,-430.0,0.00017268,2]
[363738566,1748855444584,-430.0,0.00017268,2]
[363738567,1748855444595,-430.0,0.00017268,2]
[363738568,1748855444605,-430.0,0.00017268,2]
[363738569,1748855444615,-483.75,0.00017268,2]
[363738570,1748855444624,-420.0,0.00017268,2]
[363738571,1748855444634,-430.0,0.00017268,2]
[363738572,1748855444644,-1032.44,0.00017268,2]
[363738573,1748855444654,-430.0,0.00017268,2]
[363738574,1748855444665,-430.0,0.00017268,2]
[363738575,1748855444674,-260.21576669,0.00017268,2]
[363738576,1748855444684,-430.0,0.00017268,2]
[363738577,1748855444693,-9638.78,0.00017268,2]
[363738578,1748855444703,-430.0,0.00017268,2]
[363738579,1748855444713,-567.58,0.00017268,2]
[363738580,1748855444722,-430.0,0.00017268,2]
[363738581,1748855444732,-3131.92,0.00017268,2]
[363738582,1748855444743,-490.01,0.00017268,2]
[363738583,1748855444752,-430.0,0.00017268,2]
[363738584,1748855444762,-430.0,0.00017268,2]
[363738585,1748855444771,-420.7134093,0.00017268,2]
[363738586,1748855444780,-430.0,0.00017268,2]
[363738587,1748855444790,-430.0,0.00017268,2]
[363738588,1748855444799,-924.44,0.00017268,2]
[363738589,1748855444809,-430.0,0.00017268,2]
[363738590,1748855444819,-430.0,0.00017268,2]
[363738591,1748855444829,-430.0,0.00017268,2]
[363738592,1748855444838,-1043.96,0.00017268,2]
[363738593,1748855444848,-430.0,0.00017268,2]
[363738594,1748855444857,-430.0,0.00017268,2]
[363738595,1748855444868,-430.0,0.00017268,2]
[363738596,1748855444877,-430.0,0.00017268,2]
[363738597,1748855444887,-430.0,0.00017268,2]
[363738598,1748855444897,-430.0,0.00017268,2]
[363738599,1748855444908,-430.0,0.00017268,2]
[363738600,1748855444919,-1000.0,0.00017268,2]
[363738601,1748855444930,-430.0,0.00017268,2]
[363738602,1748855445041,-430.0,0.00017268,2]
[363738603,1748855445052,-683.24,0.00017268,2]
[363738604,1748855445063,-430.0,0.00017268,2]
[363738605,1748855445073,-1000.0,0.00017269,2]
[363738606,1748855445083,-599.39978271,0.00017269,2]
[363738607,1748855445093,-430.0,0.0001727,2]
[363738608,1748855445104,-430.0,0.0001727,2]
[363738609,1748855445114,-509.59,0.0001727,2]
[363738610,1748855445124,-430.0,0.0001727,2]
[363738611,1748855445134,-430.0,0.0001727,2]
[363738612,1748855445145,-430.0,0.0001727,2]
[363738613,1748855445155,-430.0,0.0001727,2]
[363738614,1748855445166,-430.0,0.0001727,2]
[363738615,1748855445177,-434.09322898,0.0001727,2]
[363738616,1748855445187,-430.0,0.00017271,2]
[363738617,1748855445197,-430.0,0.00017271,2]
[363738618,1748855445206,-430.0,0.00017271,2]
[363738619,1748855445216,-430.0,0.00017271,2]
[363738620,1748855445226,-430.0,0.00017271,2]
[363738621,1748855445236,-430.0,0.00017271,2]
[363738622,1748855445246,-430.0,0.00017271,2]
[363738623,1748855445256,-430.0,0.00017271,2]
[363738624,1748855445266,-430.0,0.00017271,2]
[363738625,1748855445276,-430.0,0.00017271,2]
[363738626,1748855445286,-430.0,0.00017271,2]
[363738627,1748855445296,-430.0,0.00017271,2]
[363738628,1748855445306,-430.0,0.00017271,2]
[363738629,1748855445316,-337.46764265,0.00017271,2]
[363738630,1748855445325,-529.46882734,0.00017271,2]
[363738631,1748855445335,-2656.0,0.00017271,2]
[363738632,1748855445351,-2656.0,0.00017271,2]
[363738633,1748855445363,-1535.99690988,0.00017271,2]
[363738634,1748855445525,-379.50160881,0.00017271,2]
[363738635,1748855445539,-740.50148131,0.00017271,2]
[363738636,1748855445549,-2106.43127279,0.00017271,2]
[363738637,1748855445561,-549.56872721,0.00017271,2]
[363738638,1748855445571,-2656.0,0.00017271,2]
[363738639,1748855445581,-2656.0,0.00017271,2]
[363738640,1748855445591,-503.23935183,0.00017273,2]
[363738641,1748855445604,-500.0,0.00017273,2]
[363738642,1748855445614,-1752.49892233,0.00017279,2]
[363738643,1748855445624,-2273.43537248,0.00017373,2]
[363738644,1748855445633,-420.0,0.00017491,2]
[363738645,1748855445643,-500.0,0.0001753,2]
[363738646,1748855445652,-500.0,0.0001753,2]
[363738647,1748855445662,-503.10535846,0.0001753,2]
[363738648,1748855445671,-500.0,0.0001753,2]
[363738649,1748855445681,-430.0,0.00017534,2]
[363738651,1748855445691,-430.0,0.00017534,2]
[363738652,1748855445700,-430.0,0.00017534,2]
[363738654,1748855445710,-948.58,0.00017534,2]
[363738655,1748855445722,-430.0,0.00017534,2]
[363738656,1748855445731,-466.91,0.00017534,2]
[363738657,1748855445741,-2119.88,0.00017534,2]
[363738659,1748855445750,-2637.84,0.00017534,2]
[363738660,1748855445761,-549.39,0.00017534,2]
[363738661,1748855445770,-430.0,0.00017534,2]
[363738662,1748855445780,-430.0,0.00017534,2]
[363738663,1748855445790,-1678.0,0.00017534,2]
[363738665,1748855445799,-430.0,0.00017534,2]
[363738666,1748855445809,-3462.76,0.00017534,2]
[363738668,1748855445819,-2200.48,0.00017534,2]
[363738670,1748855445828,-430.0,0.00017534,2]
[363738671,1748855445837,-430.0,0.00017541,2]
[363738672,1748855445847,-430.0,0.00017541,2]
[363738674,1748855445856,-913.57,0.00017541,2]
[363738675,1748855445866,-743.73,0.00017541,2]
[363738677,1748855445875,-430.0,0.00017541,2]
[363738678,1748855445885,-430.0,0.00017541,2]
[363738679,1748855445895,-430.0,0.00017541,2]
[363738680,1748855445904,-430.0,0.00017541,2]
[363738681,1748855445913,-430.0,0.00017541,2]
[363738682,1748855445922,-430.0,0.00017541,2]
[363738683,1748855445931,-430.0,0.00017541,2]
[363738684,1748855445941,-430.0,0.00017541,2]
[363738685,1748855445950,-430.0,0.00017541,2]
[363738686,1748855445960,-430.0,0.00017541,2]
[363738688,1748855445969,-430.0,0.00017541,2]
[363738690,1748855445979,-430.0,0.00017541,2]
[363738691,1748855445988,-430.0,0.00017541,2]
[363738693,1748855445998,-430.0,0.00017541,2]
[363738695,1748855446008,-430.0,0.00017541,2]
[363738696,1748855446017,-430.0,0.00017541,2]
[363738698,1748855446027,-430.0,0.00017541,2]
[363738700,1748855446037,-430.0,0.00017541,2]
[363738702,1748855446047,-217.37314598,0.00017541,2]
[363738703,1748855446056,-430.0,0.00017541,2]
[363738705,1748855446066,-430.0,0.00017541,2]
[363738707,1748855446076,-430.0,0.00017541,2]
[363738709,1748855446085,-2187.94,0.00017541,2]
[363738711,1748855446095,-430.0,0.00017541,2]
[363738713,1748855446105,-248.25270966,0.00017542,2]
[363738715,1748855446115,-430.0,0.00017542,2]
[363738716,1748855446126,-430.0,0.00017542,2]
[363738718,1748855446136,-430.0,0.00017542,2]
[363738720,1748855446146,-440.44128043,0.00017542,2]
[363738722,1748855446156,-430.0,0.00017542,2]
[363738724,1748855446165,-370.0,0.00017542,2]
[363738726,1748855446175,-430.0,0.00017542,2]
[363738728,1748855446184,-430.0,0.00017542,2]
[363738729,1748855446193,-430.0,0.00017542,2]
[363738731,1748855446203,-60.03119431,0.00017542,2]
[363738733,1748855446215,-369.96880569,0.00017542,2]
[363738735,1748855446225,-430.0,0.00017542,2]
[363738737,1748855446235,-390.52284534,0.00017542,2]
[363738739,1748855446244,-408.35494578,0.00017542,2]
[363738741,1748855446256,-21.64505422,0.00017542,2]
[363738743,1748855446265,-430.0,0.00017542,2]
[363738745,1748855446275,-430.0,0.00017542,2]
[363738747,1748855446284,-467.8,0.00017542,2]
[363738748,1748855446294,-430.0,0.00017542,2]
[363738750,1748855446304,-430.0,0.00017542,2]
[363738752,1748855446316,-206.48041578,0.00017542,2]
[363738755,1748855446332,-223.51958422,0.00017542,2]
[363738757,1748855446342,-430.0,0.00017542,2]
[363738760,1748855446353,-430.0,0.00017542,2]
[363738761,1748855446363,-430.0,0.00017542,2]
[363738763,1748855446373,-430.0,0.00017542,2]
[363738765,1748855446382,-430.0,0.00017542,2]
[363738767,1748855446393,-440.76,0.00017542,2]
[363738769,1748855446403,-430.0,0.00017542,2]
[363738771,1748855446411,-194.49008992,0.00017542,2]
[363738773,1748855446420,-430.0,0.00017542,2]
[363738774,1748855446430,-430.0,0.00017542,2]
[363738776,1748855446440,-430.0,0.00017542,2]
[363738778,1748855446450,-430.0,0.00017542,2]
[363738780,1748855446459,-430.0,0.00017542,2]
[363738782,1748855446468,-430.0,0.00017542,2]
[363738784,1748855446478,-430.0,0.00017542,2]
[363738786,1748855446487,-430.0,0.00017542,2]
[363738788,1748855446497,-430.0,0.00017542,2]
[363738790,1748855446506,-575.05438833,0.00017542,2]
[363738791,1748855446516,-430.0,0.00017542,2]
[363738793,1748855446525,-430.0,0.00017542,2]
[363738795,1748855446535,-430.0,0.00017542,2]
[363738797,1748855446545,-430.0,0.00017542,2]
[363738799,1748855446554,-430.0,0.00017542,2]
[363738801,1748855446563,-430.0,0.00017542,2]
[363738803,1748855446573,-430.0,0.00017542,2]
[363738805,1748855446582,-430.0,0.00017542,2]
[363738806,1748855446593,-430.0,0.00017542,2]
[363738808,1748855446602,-151.65,0.00017542,2]
[363738810,1748855446611,-430.0,0.00017542,2]
[363738812,1748855446619,-430.0,0.00017542,2]
[363738814,1748855446629,-430.0,0.00017542,2]
[363738816,1748855446638,-786.19,0.00017542,2]
[363738818,1748855446647,-430.0,0.00017542,2]
[363738820,1748855446656,-430.0,0.00017542,2]
[363738821,1748855446666,-430.0,0.00017542,2]
[363738823,1748855446676,-430.0,0.00017542,2]
[363738825,1748855446686,-430.0,0.00017542,2]
[363738827,1748855446696,-430.0,0.00017542,2]
[363738829,1748855446705,-490.0,0.00017542,2]
[363738830,1748855446715,-430.0,0.00017542,2]
[363738832,1748855446725,-154.69531629,0.00017542,2]
[363738834,1748855446734,-430.0,0.00017542,2]
[363738836,1748855446744,-430.0,0.00017542,2]
[363738838,1748855446754,-430.0,0.00017542,2]
[363738840,1748855446764,-430.0,0.00017542,2]
[363738842,1748855446773,-430.0,0.00017542,2]
[363738844,1748855446783,-430.0,0.00017542,2]
[363738845,1748855446792,-430.0,0.00017542,2]
[363738847,1748855446802,-430.0,0.00017542,2]
[363738849,1748855446811,-430.0,0.00017542,2]
[363738851,1748855446821,-507.83572784,0.00017542,2]
[363738862,1748855446927,-430.0,0.00017542,2]
[363738864,1748855446937,-467.42,0.00017542,2]
[363738866,1748855446946,-1221.34,0.00017542,2]
[363738868,1748855446956,-415.19592055,0.00017542,2]
[363738870,1748855446966,-430.0,0.00017542,2]
[363738871,1748855446977,-470.0,0.00017542,2]
[363738873,1748855446986,-430.0,0.00017542,2]
[363738875,1748855446997,-430.0,0.00017542,2]
[363738877,1748855447008,-430.0,0.00017542,2]
[363738879,1748855447017,-430.0,0.00017542,2]
[363738881,1748855447027,-430.0,0.00017542,2]
[363738883,1748855447038,-430.0,0.00017542,2]
[363738885,1748855447047,-642.42,0.00017542,2]
[363738887,1748855447057,-867.22,0.00017542,2]
[363738889,1748855447067,-430.0,0.00017542,2]
[363738891,1748855447077,-430.0,0.00017542,2]
[363738892,1748855447087,-430.0,0.00017542,2]
[363738894,1748855447099,-430.0,0.00017542,2]
[363738896,1748855447108,-430.0,0.00017542,2]
[363738898,1748855447117,-430.0,0.00017542,2]
[363738900,1748855447127,-483.75,0.00017542,2]
[363738901,1748855447136,-430.0,0.00017542,2]
[363738902,1748855447146,-1032.44,0.00017542,2]
[363738903,1748855447155,-430.0,0.00017542,2]
[363738904,1748855447165,-430.0,0.00017542,2]
[363738905,1748855447175,-430.0,0.00017542,2]
[363738906,1748855447185,-9638.78,0.00017542,2]
[363738907,1748855447195,-430.0,0.00017542,2]
[363738908,1748855447205,-567.58,0.00017542,2]
[363738909,1748855447215,-320.0,0.00017542,2]
[363738910,1748855447225,-3131.92,0.00017542,2]
[363738911,1748855447235,-490.01,0.00017542,2]
[363738912,1748855447245,-430.0,0.00017542,2]
[363738913,1748855447255,-560.35,0.00017542,2]
[363738914,1748855447265,-430.0,0.00017542,2]
[363738915,1748855447275,-565.63563806,0.00017542,2]
[363738916,1748855447285,-924.44,0.00017542,2]
[363738917,1748855447296,-430.0,0.00017542,2]
[363738918,1748855447306,-430.0,0.00017542,2]
[363738919,1748855447317,-230.71493179,0.00017542,2]
[363738920,1748855447328,-1043.96,0.00017542,2]
[363738921,1748855447339,-430.0,0.00017542,2]
[363738922,1748855447353,-430.0,0.00017542,2]
[363738923,1748855447362,-430.0,0.00017542,2]
[363738924,1748855447372,-430.0,0.00017542,2]
[363738925,1748855447383,-430.0,0.00017542,2]
[363738926,1748855447393,-437.81816589,0.00017542,2]
[363738927,1748855447403,-430.0,0.00017542,2]
[363738928,1748855447413,-430.0,0.00017542,2]
[363738929,1748855447423,-430.0,0.00017542,2]
[363738930,1748855447437,-683.24,0.00017542,2]
[363738931,1748855447448,-430.0,0.00017542,2]
[363738932,1748855447458,-509.59,0.00017544,2]
[363738933,1748855447468,-430.0,0.00017544,2]
[363738934,1748855447477,-430.0,0.00017544,2]
[363738935,1748855447487,-430.0,0.00017544,2]
[363738936,1748855447497,-430.0,0.00017544,2]
[363738937,1748855447506,-430.0,0.00017545,2]
[363738938,1748855447516,-430.0,0.00017545,2]
[363738939,1748855447526,-430.0,0.00017545,2]
[363738940,1748855447535,-430.0,0.00017545,2]
[363738941,1748855447545,-430.0,0.00017545,2]
[363738942,1748855447556,-430.0,0.00017545,2]
[363738943,1748855447565,-430.0,0.00017545,2]
[363738944,1748855447574,-430.0,0.00017545,2]
[363738945,1748855447584,-430.0,0.00017545,2]
[363738946,1748855447594,-1752.49892233,0.00017555,2]
[363738947,1748855447604,-1680.0,0.00017579,2]
[363738948,1748855447613,-500.0,0.00017714,2]
[363738949,1748855447623,-540.69116155,0.00017714,2]
[363738950,1748855447634,-500.0,0.00017714,2]
[363738951,1748855447643,-500.0,0.00017748,2]
[363738952,1748855447653,-500.0,0.00017748,2]
[363738953,1748855447664,-501.49495753,0.00017748,2]
[363738954,1748855447675,-500.0,0.00017757,2]
[363738955,1748855447684,-500.0,0.00017758,2]
[363738956,1748855447695,-506.04841963,0.00017758,2]
[363738957,1748855447705,-500.0,0.00017772,2]
[363738958,1748855447715,-500.0,0.00017776,2]
[363738959,1748855447725,-500.0,0.00017776,2]
[363738960,1748855447735,-500.0,0.00017778,2]
[363738961,1748855447744,-501.89179774,0.00017778,2]
[363738962,1748855447754,-502.39560964,0.00017778,2]
[363738963,1748855447763,-500.0,0.00017806,2]
[363738964,1748855447773,-500.0,0.00017806,2]
[363738965,1748855447783,-500.0,0.00017806,2]
[363738966,1748855447793,-500.0,0.00017806,2]
[363738967,1748855447803,-500.0,0.00017806,2]
[363738968,1748855447813,-430.0,0.00017808,2]
[363738969,1748855447824,-430.0,0.00017808,2]
[363738970,1748855447834,-948.58,0.00017808,2]
[363738971,1748855447845,-430.0,0.00017808,2]
[363738972,1748855447856,-466.91,0.00017808,2]
[363738973,1748855447865,-2119.88,0.00017808,2]
[363738974,1748855447876,-2637.84,0.00017808,2]
[363738975,1748855447886,-549.39,0.00017808,2]
[363738976,1748855447897,-430.0,0.00017808,2]
[363738977,1748855447907,-430.0,0.00017808,2]
[363738978,1748855447917,-1678.0,0.00017808,2]
[363738979,1748855447927,-3462.76,0.00017808,2]
[363738980,1748855447938,-2200.48,0.00017808,2]
[363738981,1748855447948,-430.0,0.00017808,2]
[363738982,1748855447958,-430.0,0.00017815,2]
[363738983,1748855447968,-430.0,0.00017815,2]
[363738984,1748855447978,-913.57,0.00017815,2]
[363738985,1748855447988,-743.73,0.00017815,2]
[363738986,1748855447997,-430.0,0.00017815,2]
[363738987,1748855448007,-430.0,0.00017815,2]
[363738988,1748855448017,-430.0,0.00017815,2]
[363738989,1748855448027,-430.0,0.00017815,2]
[363738990,1748855448037,-185.57375839,0.00017815,2]
[363738991,1748855448047,-430.0,0.00017815,2]
[363738992,1748855448058,-430.0,0.00017815,2]
[363738993,1748855448068,-430.0,0.00017815,2]
[363738994,1748855448078,-430.0,0.00017815,2]
[363738995,1748855448088,-430.0,0.00017815,2]
[363738996,1748855448099,-430.0,0.00017815,2]
[363738997,1748855448109,-430.0,0.00017815,2]
[363738998,1748855448118,-430.0,0.00017815,2]
[363738999,1748855448128,-430.0,0.00017815,2]
[363739000,1748855448138,-430.0,0.00017815,2]
[363739001,1748855448148,-430.0,0.00017815,2]
[363739002,1748855448159,-430.0,0.00017815,2]
[363739003,1748855448170,-430.0,0.00017815,2]
[363739004,1748855448181,-430.0,0.00017815,2]
[363739005,1748855448192,-2187.94,0.00017815,2]
[363739006,1748855448202,-430.0,0.00017815,2]
[363739007,1748855448212,-430.0,0.00017816,2]
[363739008,1748855448222,-430.0,0.00017816,2]
[363739009,1748855448232,-192.66632329,0.00017816,2]
[363739010,1748855448241,-430.0,0.00017816,2]
[363739011,1748855448251,-430.0,0.00017816,2]
[363739012,1748855448261,-488.1799649,0.00017816,2]
[363739013,1748855448271,-346.77002132,0.00017816,2]
[363739014,1748855448280,-394.04398,0.00017816,2]
[363739015,1748855448290,-430.0,0.00017816,2]
[363739016,1748855448300,-430.0,0.00017816,2]
[363739017,1748855448310,-430.0,0.00017816,2]
[363739018,1748855448322,-430.0,0.00017816,2]
[363739019,1748855448332,-430.0,0.00017816,2]
[363739020,1748855448342,-430.0,0.00017816,2]
[363739021,1748855448355,-430.0,0.00017816,2]
[363739022,1748855448365,-430.0,0.00017816,2]
[363739023,1748855448376,-430.0,0.00017816,2]
[363739024,1748855448387,-440.76,0.00017816,2]
[363739025,1748855448397,-430.0,0.00017816,2]
[363739026,1748855448408,-430.0,0.00017816,2]
[363739027,1748855448418,-430.0,0.00017816,2]
[363739028,1748855448429,-430.0,0.00017816,2]
[363739029,1748855448438,-430.0,0.00017816,2]
[363739030,1748855448447,-430.0,0.00017816,2]
[363739031,1748855448456,-327.67,0.00017816,2]
[363739032,1748855448465,-430.0,0.00017816,2]
[363739033,1748855448474,-430.0,0.00017816,2]
[363739034,1748855448484,-430.0,0.00017816,2]
[363739035,1748855448493,-430.0,0.00017816,2]
[363739036,1748855448503,-430.0,0.00017816,2]
[363739037,1748855448513,-455.28,0.00017816,2]
[363739038,1748855448523,-430.0,0.00017816,2]
[363739039,1748855448534,-430.0,0.00017816,2]
[363739040,1748855448544,-470.0,0.00017816,2]
[363739041,1748855448554,-430.0,0.00017816,2]
[363739042,1748855448565,-430.0,0.00017816,2]
[363739043,1748855448575,-430.0,0.00017816,2]
[363739044,1748855448585,-786.19,0.00017816,2]
[363739045,1748855448596,-430.0,0.00017816,2]
[363739046,1748855448606,-430.0,0.00017816,2]
[363739047,1748855448616,-530.0,0.00017816,2]
[363739048,1748855448627,-430.0,0.00017816,2]
[363739049,1748855448637,-430.0,0.00017816,2]
[363739050,1748855448647,-430.0,0.00017816,2]
[363739051,1748855448657,-430.0,0.00017816,2]
[363739052,1748855448667,-430.0,0.00017816,2]
[363739053,1748855448678,-430.0,0.00017816,2]
[363739054,1748855448687,-430.0,0.00017816,2]
[363739055,1748855448697,-430.0,0.00017816,2]
[363739056,1748855448707,-430.0,0.00017816,2]
[363739057,1748855448717,-430.0,0.00017816,2]
[363739058,1748855448727,-430.0,0.00017816,2]
[363739059,1748855448737,-430.0,0.00017816,2]
[363739060,1748855448747,-430.0,0.00017816,2]
[363739061,1748855448758,-430.0,0.00017816,2]
[363739062,1748855448769,-467.42,0.00017816,2]
[363739063,1748855448778,-1221.34,0.00017816,2]
[363739064,1748855448788,-430.0,0.00017816,2]
[363739065,1748855448798,-430.0,0.00017816,2]
[363739066,1748855448808,-430.0,0.00017816,2]
[363739067,1748855448819,-430.0,0.00017816,2]
[363739068,1748855448919,-430.0,0.00017816,2]
[363739069,1748855448931,-430.0,0.00017816,2]
[363739070,1748855448941,-430.0,0.00017816,2]
[363739071,1748855448951,-642.42,0.00017816,2]
[363739072,1748855448961,-867.22,0.00017816,2]
[363739073,1748855448972,-430.0,0.00017816,2]
[363739074,1748855448983,-430.0,0.00017816,2]
[363739075,1748855448993,-430.0,0.00017816,2]
[363739076,1748855449003,-430.0,0.00017816,2]
[363739077,1748855449013,-430.0,0.00017816,2]
[363739078,1748855449023,-430.0,0.00017816,2]
[363739079,1748855449033,-483.75,0.00017816,2]
[363739080,1748855449043,-430.0,0.00017816,2]
[363739081,1748855449053,-1032.44,0.00017816,2]
[363739082,1748855449063,-560.31747311,0.00017816,2]
[363739083,1748855449074,-400.0,0.00017816,2]
[363739084,1748855449085,-420.0,0.00017816,2]
[363739085,1748855449097,-9638.78,0.00017816,2]
[363739086,1748855449108,-430.0,0.00017816,2]
[363739087,1748855449119,-567.58,0.00017816,2]
[363739088,1748855449129,-3131.92,0.00017816,2]
[363739089,1748855449139,-490.01,0.00017816,2]
[363739090,1748855449149,-430.0,0.00017816,2]
[363739091,1748855449159,-430.0,0.00017816,2]
[363739092,1748855449170,-924.44,0.00017816,2]